Cogmind - Beta 12 @@@ ROGUE MODE // 2023.03.26 @ 03:10:05 Player: Rainynight Result: Destroyed by Y-45 Defender with Heavy Assault Rifle Performance ------------- Evolutions (2) 1000 Regions Visited (5) 1000 Robots Destroyed (2) 10 Value Destroyed (17) 17 Prototype IDs (0) 0 Alien Tech Used (0) 0 Bonus (-8747) -8747 TOTAL SCORE: -6720 Bonus ------- Devolution -13500 Fragile Parts 500 No Salvage 510 Pure Core 1003 Scavenger 2000 Simple Hacker 490 Trapped 250 Cogmind --------- Core Integrity 0/800 Matter 228/300 Energy 100/100 System Corruption 0% Temperature Cool (9) Movement Core (50) Location -8/Storage Parts ------- > --- POWER (3) -------- (None) > --- PROPULSION (5) --- (None) > --- UTILITY (8) ------ (None) > --- WEAPON (2) ------- (None) > --- INVENTORY (0) ---- (None) Peak State ------------ None Favorites ----------- Power None Propulsion None Utility None Weapon None Build | -11 -10 -10 -9 -8 -8 ------- Run | Jun Mat Min Mat Mat Sto Slots Evolved -2 | . . . -1 -1 . Power . | . . . . . . Propulsion -1 | . . . . -1 . Utility -1 | . . . -1 . . Weapon . | . . . . . . Parts Attached . | . . . . . . Power . | . . . . . . Engine . | . . . . . . Core . | . . . . . . Reactor . | . . . . . . Propulsion . | . . . . . . Treads . | . . . . . . Leg . | . . . . . . Wheel . | . . . . . . Hover . | . . . . . . Flight . | . . . . . . Utility . | . . . . . . Device . | . . . . . . Storage . | . . . . . . Processor . | . . . . . . Hackware . | . . . . . . Protection . | . . . . . . Artifact . | . . . . . . Weapon . | . . . . . . Energy Gun . | . . . . . . Energy Cannon . | . . . . . . Ballistic Gun . | . . . . . . Ballistic Cannon . | . . . . . . Launcher . | . . . . . . Special Weapon . | . . . . . . Impact Weapon . | . . . . . . Slashing Weapon . | . . . . . . Piercing Weapon . | . . . . . . Special Melee Weapon . | . . . . . . Unidentified Prototypes . | . . . . . . Parts Lost . | . . . . . . Power . | . . . . . . Propulsion . | . . . . . . Utility . | . . . . . . Weapon . | . . . . . . Highest Loss Streak . | . . . . . . To Critical Strikes . | . . . . . . Average Slot Usage (%) . | . . . . . . Naked Turns 381 | . 21 103 59 108 90 Heaviest Build . | . . . . . . Greatest Support 3 | 3 3 3 3 3 3 Greatest Overweight (x) . | . . . . . . Average Overweight (x) . | . . . . . . Largest Inventory Capacity . | . . . . . . Average Capacity . | . . . . . . Most Carried . | . . . . . . Average Carried . | . . . . . . Final Capacity . | . . . . . . Final Carried . | . . . . . . Class Distribution -------------------- 100% | Mutant Dominant Class ---------------- Mutant | -10/Materials Mutant | -10/Mines Mutant | -9/Materials Mutant | -8/Materials Mutant | -8/Storage Resources | -11 -10 -10 -9 -8 -8 ----------- Run | Jun Mat Min Mat Mat Sto Matter Collected 50 | 13 . 37 . . . Remotely . | . . . . . . Salvage Created 33 | 13 . 20 . . . Parts . | . . . . . . Haulers Intercepted . | . . . . . . Recyclers Shooed . | . . . . . . Parts Field Recycled . | . . . . . . Retrieved Matter . | . . . . . . Parts Self-Destructed . | . . . . . . Prevented . | . . . . . . Kills | -11 -10 -10 -9 -8 -8 ------- Run | Jun Mat Min Mat Mat Sto Combat Hostiles Destroyed 1 | . . 1 . . . Melee 1 | . . 1 . . . Classes Destroyed 2 | 1 . 1 . . . Tunneler 1 | 1 . . . . . Swarmer 1 | . . 1 . . . Best Kill Streak 1 | 1 . 1 . . . Combat Bots Only 1 | . . 1 . . . Max Kills in Single Turn 1 | 1 . 1 . . . Gunslinging . | . . . . . . Exploded . | . . . . . . Melee 1 | . . 1 . . . Uniques/NPCs Destroyed . | . . . . . . Combat | -11 -10 -10 -9 -8 -8 -------- Run | Jun Mat Min Mat Mat Sto Damage Taken 1326 | 6 17 150 347 460 346 Core 1326 | 6 17 150 347 460 346 Absorbed by Shields . | . . . . . . Core Remaining (%) 77 | 99 . 78 56 . . Volleys Fired . | . . . . . . Largest . | . . . . . . Hottest . | . . . . . . Shots Fired . | . . . . . . Gun . | . . . . . . Cannon . | . . . . . . Launcher . | . . . . . . Special . | . . . . . . Kinetic . | . . . . . . Thermal . | . . . . . . Explosive . | . . . . . . Electromagnetic . | . . . . . . Robot Hit Streak . | . . . . . . Robot Miss Streak . | . . . . . . Penetration Max . | . . . . . . Secondary Targets . | . . . . . . Shots Hit Robots . | . . . . . . Core Hits 5 | 1 . 1 . 2 1 Critical Kills . | . . . . . . Critical Parts Destroyed . | . . . . . . Critical Strikes . | . . . . . . Melee Attacks . | . . . . . . Impact . | . . . . . . Slashing . | . . . . . . Piercing . | . . . . . . Sneak Attacks . | . . . . . . Combat Hostiles . | . . . . . . Follow-up Attacks . | . . . . . . Damage Inflicted 141 | 13 . 26 9 69 24 Guns . | . . . . . . Cannons . | . . . . . . Explosions . | . . . . . . Melee . | . . . . . . Ramming 141 | 13 . 26 9 69 24 Kinetic . | . . . . . . Thermal . | . . . . . . Explosive . | . . . . . . Electromagnetic . | . . . . . . Impact . | . . . . . . Slashing . | . . . . . . Piercing . | . . . . . . Highest Corruption . | . . . . . . Average Corruption . | . . . . . . Corruption Purged . | . . . . . . Corruption Blocked . | . . . . . . Overload Shots . | . . . . . . Overflow Damage . | . . . . . . Projectiles . | . . . . . . Explosions . | . . . . . . Melee . | . . . . . . Knockbacks . | . . . . . . Impact . | . . . . . . Kinetic . | . . . . . . Secondary . | . . . . . . Self-Inflicted Damage 62 | 6 . 13 3 30 10 Shots . | . . . . . . Rammed 26 | 1 . 2 3 14 6 Targets Rammed 26 | 1 . 2 3 14 6 Kicked . | . . . . . . Crushed . | . . . . . . Highest Temperature . | . . . . . . Average Temperature . | . . . . . . Received Heat Transfer 423 | . . 54 153 144 72 Siege Activations . | . . . . . . Robots Corrupted . | . . . . . . Combat Hostiles . | . . . . . . Parts Fried . | . . . . . . Impact Corruptions . | . . . . . . Robots Melted . | . . . . . . Combat Hostiles . | . . . . . . Parts Melted . | . . . . . . Heat Transferred . | . . . . . . Parts Sabotaged . | . . . . . . Parts Stolen . | . . . . . . Parts Stripped . | . . . . . . Power Chain Reactions . | . . . . . . Missiles Intercepted . | . . . . . . Alert | -11 -10 -10 -9 -8 -8 ------- Run | Jun Mat Min Mat Mat Sto Peak Influence 182 | 5 10 23 68 182 166 Initial 76 | . 3 3 8 28 76 Average 51 | 2 9 5 34 71 104 Maximum Alert Level . | . . . . . . Low Security (%) 100 | 100 100 100 100 100 100 Level 1 . | . . . . . . Level 2 . | . . . . . . Level 3 . | . . . . . . Level 4 . | . . . . . . Level 5 . | . . . . . . High Security . | . . . . . . Max Security . | . . . . . . Squads Dispatched 6 | . 1 . 2 1 2 Investigation 3 | . . . 2 . 1 Extermination . | . . . . . . Reinforcement 3 | . 1 . . 1 1 Assault . | . . . . . . Garrison . | . . . . . . Intercept . | . . . . . . Searches Triggered . | . . . . . . Construction Impeded 1 | . . . . 1 . Haulers Reinforced . | . . . . . . Active Scanning Responses . | . . . . . . Cargo Convoy Interrupts . | . . . . . . Stealth | -11 -10 -10 -9 -8 -8 --------- Run | Jun Mat Min Mat Mat Sto Distress Signals 6 | . . . 1 3 2 Communications Jammed . | . . . . . . Distress Signals . | . . . . . . Times Spotted 64 | . 4 8 16 18 18 Peak Tracking Total 16 | . 6 5 15 16 15 Tactical Retreats 4 | . . . 1 2 1 Traps | -11 -10 -10 -9 -8 -8 ------- Run | Jun Mat Min Mat Mat Sto Traps Triggered 7 | . . . 3 2 2 Indirectly . | . . . . . . Trap Hack Attempts . | . . . . . . Triggered . | . . . . . . Disarmed . | . . . . . . Reprogrammed . | . . . . . . Reused . | . . . . . . Traps Extracted . | . . . . . . Installed . | . . . . . . Triggered . | . . . . . . Machines | -11 -10 -10 -9 -8 -8 ---------- Run | Jun Mat Min Mat Mat Sto Machines Disabled . | . . . . . . Max in Single Turn . | . . . . . . Machines Repaired . | . . . . . . Machines Sabotaged . | . . . . . . Overloaded Fab Kills . | . . . . . . Hacking | -11 -10 -10 -9 -8 -8 --------- Run | Jun Mat Min Mat Mat Sto Machines Accessed 5 | . 1 . 2 1 1 Terminals 5 | . 1 . 2 1 1 Fabricators . | . . . . . . Repair Stations . | . . . . . . Recycling Units . | . . . . . . Scanalyzers . | . . . . . . Garrison Access . | . . . . . . Total Hacks 14 | . 2 . 8 1 3 Successful 3 | . 1 . 1 1 . Failed 11 | . 1 . 7 . 3 Catastrophic 4 | . . . 2 . 2 Database Lockouts . | . . . . . . Manual . | . . . . . . Terminals 14 | . 2 . 8 1 3 Fabricators . | . . . . . . Repair Stations . | . . . . . . Recycling Units . | . . . . . . Scanalyzers . | . . . . . . Garrison Access . | . . . . . . Terminal Hacks 3 | . 1 . 1 1 . Branch Access Points 1 | . 1 . . . . Emergency Access Points 2 | . . . 1 1 . Fabricator Hacks . | . . . . . . Repair Station Hacks . | . . . . . . Recycling Unit Hacks . | . . . . . . Scanalyzer . | . . . . . . Garrison Access Hacks . | . . . . . . Unauthorized Hacks . | . . . . . . Terminals . | . . . . . . Fabricators . | . . . . . . Repair Stations . | . . . . . . Recycling Units . | . . . . . . Scanalyzers . | . . . . . . Garrison Access . | . . . . . . Data Cores Recovered . | . . . . . . Used . | . . . . . . Hacking Detections 4 | . 1 . 2 . 1 Full Trace Events 2 | . . . 1 . 1 Feedback Events . | . . . . . . Feedback Blocked . | . . . . . . Robot Schematics Acquired . | . . . . . . Robots Built . | . . . . . . Authchips . | . . . . . . Time . | . . . . . . Total Robot Build Rating . | . . . . . . Part Schematics Acquired . | . . . . . . Parts Built . | . . . . . . Authchips . | . . . . . . Time . | . . . . . . Total Part Build Rating . | . . . . . . Parts Repaired . | . . . . . . Time . | . . . . . . Parts Recycled . | . . . . . . Recycled Matter . | . . . . . . Retrieved Matter . | . . . . . . Retrieved Components . | . . . . . . Parts Scanalyzed . | . . . . . . Part Schematics Acquired . | . . . . . . Parts Damaged . | . . . . . . Bothacking | -11 -10 -10 -9 -8 -8 ------------ Run | Jun Mat Min Mat Mat Sto Used RIF Installer . | . . . . . . Robots Hacked . | . . . . . . Non-combat . | . . . . . . Combat . | . . . . . . Robot Hacks Applied . | . . . . . . Relay Couplers Released . | . . . . . . Fabnet Peak Effective % . | . . . . . . Robots Rewired . | . . . . . . Allies Hacked . | . . . . . . Hacks Repelled . | . . . . . . Allies | -11 -10 -10 -9 -8 -8 -------- Run | Jun Mat Min Mat Mat Sto Total Allies . | . . . . . . Largest Group . | . . . . . . Highest-Rated Group . | . . . . . . Highest-Rated Ally . | . . . . . . Total Orders . | . . . . . . Ally Attacks . | . . . . . . Total Damage . | . . . . . . Kills . | . . . . . . Allies Corrupted . | . . . . . . Allies Melted . | . . . . . . Intel | -11 -10 -10 -9 -8 -8 ------- Run | Jun Mat Min Mat Mat Sto Robot Analysis Total . | . . . . . . Derelict Logs Recovered 1 | . . 1 . . . Drone Launches . | . . . . . . Drone Recoveries . | . . . . . . Exploration | -11 -10 -10 -9 -8 -8 ------------- Run | Jun Mat Min Mat Mat Sto Turns Passed 391 | 10 21 103 59 108 90 Spaces Moved 657 | 19 40 192 112 187 107 Core 657 | 19 40 192 112 187 107 Treads . | . . . . . . Legs . | . . . . . . Wheels . | . . . . . . Hover . | . . . . . . Flight . | . . . . . . Fastest Speed 50 | 50 50 50 50 50 50 Average Speed 50 | 50 50 50 50 50 50 Slowest Speed 50 | 50 50 50 50 50 50 Overloaded Moves . | . . . . . . Propulsion Burnouts . | . . . . . . Robots Hopped . | . . . . . . Cave-ins Triggered . | . . . . . . Exploration Rate (%) 29 | 4 21 53 22 35 42 Regions Visited 5 Branch Regions 2 Pre-discovered Areas 1 | . . 1 . . . Known Exits Taken 1 | . 1 . . . . Unknown Exits Taken 4 | 1 . 1 1 1 . Scrap Searched 1 | . . 1 . . . Spaces Dug . | . . . . . . Terrain Destroyed . | . . . . . . Melee . | . . . . . . Projectile . | . . . . . . AOE . | . . . . . . Terrain Rammed . | . . . . . . Walls Destroyed . | . . . . . . Machines Disabled . | . . . . . . Actions | -11 -10 -10 -9 -8 -8 --------- Run | Jun Mat Min Mat Mat Sto Total 714 | 19 40 198 114 200 143 Wait 6 | . 1 5 . . . Move 653 | 18 39 191 112 186 107 Hop . | . . . . . . Pick Up . | . . . . . . Fast Attach . | . . . . . . Attach . | . . . . . . Detach . | . . . . . . Swap . | . . . . . . Drop . | . . . . . . Fire . | . . . . . . Melee . | . . . . . . Ram 25 | 1 . 2 2 14 6 Kick . | . . . . . . Crush . | . . . . . . Escape Stasis 30 | . . . . . 30 Rewire . | . . . . . . Trap . | . . . . . . Miscellaneous . | . . . . . . Route ------- -11/Junkyard -10/Materials (discovered 2 exits: *Min x2) -10/Mines -9/Materials -8/Materials -8/Storage History --------- Turn | Location | Event 5 | -11/Junkyard | Discovered new exit (range 12) 11 | -11/Junkyard | Entered Materials 13 | -10/Materials | Identified exit to Mines 32 | -10/Materials | Entered Mines 40 | -10/Mines | Met a Derelict bent on vengeance 120 | -10/Mines | Learned Materials stockpile data 132 | -10/Mines | Discovered new exit (range 6) 134 | -10/Mines | Learned location of Storage (-8) 135 | -10/Mines | Entered Materials 135 | -9/Materials | Devolved, losing 1 slot: Utility x-1 188 | -9/Materials | Discovered new exit (range 10) 194 | -9/Materials | Entered another Materials area 194 | -8/Materials | Devolved, losing 1 slot: Propulsion x-1 296 | -8/Materials | Discovered new exit (range 9) 299 | -8/Materials | Core integrity fell below 50% 302 | -8/Materials | Entered Storage 305 | -8/Storage | Build established: Mutant 376 | -8/Storage | Core integrity fell below 20% 392 | -8/Storage | Destroyed by Y-45 Defender with Heavy Assault Rifle Last Messages --------------- 00336_ O-16 Technician: "IFF HANDSHAKE FAILED. SECURING TERMINAL." 00340_ K-01 Serf collects debris. 00341_ ALERT: Hostiles spotted, dispatching reinforcements to Terminal S007. 00343_ K-01 Serf collects debris. 00350_ O-16 Technician: "IFF HANDSHAKE FAILED. SECURING TERMINAL." 00354_ Connecting with Terminal... 00354_ Current location identified: Storage 00354_ ALERT: Suspicious activity at Terminal S004. Dispatching Investigation squad. 00361_ Slammed into U-05 Engineer. 00364_ Slammed into G-47 Trooper. 00367_ W-25 Informer sends out distress signal. 00371_ S-10 Pest destroyed. 00375_ K-01 Serf collects debris. 00377_ Slammed into G-47 Trooper. 00379_ Slug penetrates Wall. 00384_ Slammed into U-05 Engineer. 00384_ U-05 Engineer sends out distress signal. 00390_ Slammed into K-01 Serf. Map ----- +----------------------------------------------------+ | #?????# #????????????????????????????????????? | | #?????# #????????????????????????????????????? | | #?????# #????????????????????????????????????? | | #?????# #????????????????????????????????????? | | #????## ##???????????????????????????????????? | | ###### #???????????????????????????????????? | | +! !???????????????????????????????? | | ##/### #???????????????????????????????????? | | ### ##???????????????????????????????????? | | """ T## #????????????????????????????????????? | | """ ### #????????????????????????????????????? | | """ #?# #????????????????????????????????????? | | #?# #???###??????????????????????????????? | | ### #?? ##?????????????????????????????? | | # #?? ""?????????????????????????????? | | # #? ""?????????????????????????????? | | ##### #? T??????????????????????????????? | | ????# # """ ""????????????????#????????????? | | ????# # """ ""??????????????? ##???????????? | | ????# + """ ####????##?????? ????????????? | | ????# # # ??? #?????" ?????????????? | | ????# # """ #? ? #???? ??????###?????? | | ????# % #?""" #?? #####+##### #?????? | | ????# #?""" #???"""" # #?????? | | ????# #?? #???"""" + Y #?????? | | ###?# #??##+#????""" #r@ #?????? | | ?# #???# #????""" # #########???????????? | | # #???# #????? #s##########??????????? | | # #???# #????? # / #??????????? | | / #???# ##+#??#+## # """ #??????????? | | """ # ##### #### # """"??????????????? | | """ # # "?????????????????? | | """?# ########/#### # "?????????????????? | | #????? ?# # "?????????????????? | | ######+#####"" # # "?????????????????? | | ?# """ """ #"T """ !# # ?????????????????? | | ?# """ """ #"" "G # # ?????????????????? | | ?# """ """ ### """ # ###?????????????????? | | ?# #?# # #???????????????????? | | ?# #?######## #???????????????????? | | ?# #????????+ ???????????????????? | | ?# #????????#+##+#???????????????????? | | ?# #?????????????????????????????????? | | ?###### ####?????????????????????????????????? | | ???????##????????????????????????????????????? | | ?????????????????????????????????????????????? | | ?????????????????????????????????????????????? | | ?????????????????????????????????????????????? | | ?????????????????????????????????????????????? | | ?????????????????????????????????????????????? | +----------------------------------------------------+ Best States ------------- Heat Dissipation 20 Energy Generation 5 Energy Capacity 100 Matter Stores 222 Matter Capacity 300 Sight Range 16 Terrain Scan Density 10 Evasion (%) 50 Item Schematics ----------------- None Robot Schematics ------------------ None Fabricated ------------ Nothing Alien Tech Used ----------------- None Achievements -------------- None Challenges ------------ Devolution Fragile Parts No Salvage Pure Core Scavenger Simple Hacker Trapped Game ------ Seed ReinforcedGreatNullifier Manual? 0 Play Time 00:05:21 Cumulative 279.6 hours Start 2023.03.26 @ 03:05:45 End 2023.03.26 @ 03:10:05 Sessions 1 Manual Loads 0 Difficulty Rogue Special Mode None Game No. 256 Rogue 239 Adventurer 1 Explorer 16 Win Type - Total 16 Types 13/1/0/2/0/0/0/0/0 Lore% 74 Gallery% 80 Achievement% 72 Wizard Run 0 Options --------- ASCII 1 Keyboard 1 Movement Numpad Keybinds 1 Fullscreen 1 Font 18/X11 Map View 76x50 Tactical HUD 1 Map Filters NONE Filters NONE Steam 1 RUN: 660c28fd-ea77-4509-8084-ef27731e0d45